bitfinex-derivatives/quotes_SOLF0:USTF0_20241029
["timestamp","ask_amount","ask_price","bid_price","bid_amount"]
[1730192269329,3.92,181.12,181.11,5.93972582]
[1730192269630,3.92,181.12,181.11,8.70252582]
[1730192270328,10.0542482,181.14,181.13,2.7625]
[1730192270526,13.9542482,181.14,181.13,8.70222582]
[1730192271232,3.9,181.14,181.13,8.70222582]
[1730192271531,2.7616,181.19,181.13,8.70222582]
[1730192271725,3.9,181.18,181.13,8.70222582]
[1730192272525,2.762,181.17,181.13,8.70222582]
[1730192272925,2.6932,181.22,181.19,2.7615]
[1730192273223,6.6613,181.21,181.16,5.93972582]
[1730192273432,3.9,181.2,181.16,5.93972582]
[1730192273726,3.9,181.2,181.17,2.7618]
[1730192274128,6.6614,181.2,181.17,2.7618]
[1730192274521,6.6614,181.2,181.17,1.7618]
[1730192275024,9.83972582,181.2,181.15,5.93972582]
[1730192275230,2.7617,181.18,181.14,2.7622]
[1730192276325,2.762,181.17,181.13,5.93972582]
[1730192276524,3.9,181.16,181.13,5.93972582]
[1730192277025,6.662,181.16,181.11,5.93972582]
[1730192278132,3.9,181.16,181.08,81.62334888]
[1730192278335,3.9,181.16,181.11,5.93972582]
[1730192278930,3.9,181.16,181.12,2.7625]
[1730192278931,2.7622,181.15,181.12,2.7625]
[1730192279429,3.9,181.16,181.11,5.93972582]
[1730192279628,6.662,181.16,181.13,2.7624]
[1730192280534,3.9,181.16,181.13,2.7624]
[1730192282631,2.6932,181.22,181.15,5.93972582]
[1730192282863,3.9,181.21,181.17,5.93972582]
[1730192283743,2.7616,181.19,181.17,5.93972582]
[1730192284239,2.7617,181.18,181.15,2.7622]
[1730192284438,3.9,181.17,181.08,81.62334888]
[1730192284632,3.9,181.17,181.11,5.93972582]
[1730192284836,2.762,181.16,181.13,2.7625]
[1730192285432,6.6619,181.17,181.12,2.7625]
[1730192285629,6.6619,181.17,181.11,5.93972582]
[1730192286037,6.6619,181.17,181.13,2.7624]
[1730192286435,6.6619,181.17,181.11,5.93972582]
[1730192286835,2.7621,181.16,181.11,5.93972582]
[1730192287033,5.93972582,181.16,181.1,5.93972582]
[1730192287237,2.7622,181.15,181.1,5.93972582]
[1730192287738,2.7622,181.15,181.12,2.7626]
[1730192288138,5.93972582,181.16,181.1,5.93972582]
[1730192288338,2.7623,181.14,181.11,2.7627]
[1730192288542,3.9,181.13,181.11,2.7627]
[1730192291039,3.9,181.13,181.12,2.7626]
[1730192291235,3.9,181.13,181.12,8.70232582]
[1730192293841,3.9,181.13,181.12,2.7626]
[1730192303753,2.7613,181.21,181.15,2.7622]
[1730192303951,3.92,181.2,181.16,5.93972582]
[1730192304447,9.85972582,181.2,181.15,5.93972582]
[1730192304847,9.85972582,181.2,181.13,7.22382582]
[1730192305047,5.93972582,181.17,181.13,1.2841]
[1730192305244,3.92,181.16,181.11,5.93972582]
[1730192305849,6.682,181.16,181.13,2.7625]
[1730192306559,3.92,181.16,181.13,2.7625]
[1730192307752,3.92,181.16,181.13,8.70222582]
[1730192308050,3.92,181.16,181.15,8.70192582]
[1730192308247,3.92,181.16,181.15,5.93972582]
[1730192308449,3.92,181.17,181.15,5.93972582]
[1730192308750,3.92,181.18,181.16,5.93972582]
[1730192308955,3.92,181.18,181.17,5.93972582]
[1730192309547,3.92,181.18,181.17,8.70162582]
[1730192309749,3.92,181.18,181.17,2.7619]
[1730192309949,3.92,181.18,181.17,8.70162582]
[1730192314559,2.7619,181.17,181.15,5.93972582]
[1730192314759,3.92,181.18,181.15,5.93972582]
[1730192315558,6.6818,181.18,181.15,8.70182582]
[1730192315866,3.92,181.18,181.09,344.0]
[1730192316057,3.92,181.18,181.15,5.93972582]
[1730192316459,2.7619,181.17,181.15,5.93972582]
[1730192316961,3.92,181.18,181.15,5.93972582]
[1730192317158,6.6817,181.18,181.16,5.93972582]
[1730192317361,3.92,181.18,181.16,5.93972582]
[1730192318466,3.92,181.18,181.16,8.70162582]
[1730192325870,6.6818,181.18,181.15,8.70172582]
[1730192326071,3.92,181.18,181.15,5.93972582]
[1730192326677,3.92,181.18,181.16,2.7619]
[1730192330378,3.92,181.18,181.08,82.89904888]
[1730192330578,9.85972582,181.18,181.12,5.93972582]
[1730192330980,2.7621,181.16,181.13,2.7624]
[1730192332277,2.7619,181.17,181.14,8.70202582]
[1730192333591,2.7619,181.17,181.14,2.7623]
[1730192333880,2.7619,181.17,181.15,5.93972582]
[1730192335674,3.92,181.18,181.16,5.93972582]
[1730192336481,3.92,181.18,181.17,2.7619]
[1730192337878,3.92,181.18,181.16,8.70172582]
[1730192340381,6.6818,181.18,181.15,2.7621]
[1730192340781,6.6818,181.18,181.15,8.70182582]
[1730192343382,1.3931,181.22,181.17,5.93972582]
[1730192343585,3.9,181.21,181.19,5.93972582]
[1730192344594,3.9,181.21,181.18,2.7616]
[1730192344992,3.9,181.21,181.18,8.70132582]
[1730192345194,3.9,181.21,181.11,1.3219]
[1730192345394,3.9,181.21,181.17,5.93972582]
[1730192346091,6.6613,181.21,181.17,8.70142582]
[1730192346589,6.6613,181.21,181.11,1.3219]
[1730192346800,2.7614,181.2,181.11,1.3219]
[1730192347099,9.83972582,181.21,181.15,5.93972582]
[1730192347493,2.7616,181.19,181.16,2.762]
[1730192348303,9.83972582,181.21,181.16,2.762]
[1730192348600,2.7615,181.2,181.16,2.762]
[1730192354302,10.04793258,181.23,181.19,5.93972582]
[1730192354508,3.9,181.22,181.19,5.93972582]
[1730192355007,10.04793258,181.23,181.21,5.93972582]
[1730192355301,59.68,181.24,181.22,5.93972582]
[1730192355601,3.9,181.22,181.21,8.70092582]
[1730192356001,3.9,181.22,181.2,2.7614]
[1730192367810,3.9,181.22,181.17,1.3435]
[1730192368006,3.9,181.22,181.18,5.93972582]
[1730192368207,3.9,181.22,181.19,2.7615]
[1730192368709,3.9,181.22,181.18,5.93972582]
[1730192369305,9.83972582,181.22,181.16,7.32112582]
[1730192369716,9.83972582,181.22,181.16,1.3814]
[1730192370116,2.7615,181.2,181.17,2.7618]
[1730192371717,2.7613,181.21,181.17,2.7618]
[1730192377215,6.6611,181.22,181.19,2.7615]
[1730192377423,6.6611,181.22,181.18,5.93972582]
[1730192378416,6.6611,181.22,181.18,8.70142582]
[1730192380327,2.7613,181.21,181.18,8.70142582]
[1730192380626,3.9,181.2,181.18,8.70142582]
[1730192381326,10.06412736,181.23,181.19,5.93972582]
[1730192381621,3.9,181.22,181.19,5.93972582]
[1730192382220,3.9,181.22,181.2,2.7614]
[1730192383117,10.06412736,181.23,181.16,1.3814]
[1730192383318,3.88,181.25,181.23,2.7609]
[1730192383518,3.88,181.25,181.24,5.93972582]
[1730192384325,3.88,181.25,181.24,8.70052582]
[1730192386632,3.88,181.25,181.24,2.7608]
[1730192387734,3.88,181.25,181.23,8.70062582]
[1730192388230,3.88,181.25,181.23,2.7609]
[1730192388436,3.88,181.25,181.23,8.70062582]
[1730192391136,3.88,181.25,181.22,2.7611]
[1730192391338,3.88,181.25,181.22,8.70082582]
[1730192391525,3.88,181.25,181.22,5.93972582]
[1730192392227,3.88,181.25,181.23,2.7609]
[1730192392838,2.7611,181.22,181.17,8.70152582]
[1730192393137,3.88,181.21,181.17,8.70152582]
[1730192394035,6.6413,181.21,181.17,8.70152582]
[1730192396234,6.6413,181.21,181.18,2.7617]
[1730192396429,6.6413,181.21,181.18,8.70142582]
[1730192396630,6.6413,181.21,181.18,2.7617]
[1730192396930,6.6413,181.21,181.18,8.70142582]
[1730192397726,3.88,181.21,181.16,10.08302582]
[1730192398243,5.93972582,181.19,181.1,2.6561]
[1730192398432,2.7618,181.18,181.14,5.93972582]
[1730192398739,3.88,181.17,181.15,5.93972582]
[1730192399930,3.88,181.17,181.16,2.762]
[1730192400439,1.7827,181.17,181.16,2.762]
[1730192400835,10.06412736,181.25,181.15,5.93972582]
[1730192401040,3.88,181.24,181.22,5.93972582]
[1730192401336,10.06412736,181.27,181.23,5.93972582]
[1730192401542,3.88,181.26,181.13,5.5249]
[1730192401733,3.88,181.26,181.23,5.93972582]
[1730192402126,3.88,181.26,181.23,8.70062582]
[1730192402127,6.6405,181.26,181.23,8.70062582]
[1730192402329,6.6405,181.26,181.21,5.93972582]
[1730192403335,6.6405,181.26,181.22,2.7611]
[1730192405342,3.88,181.26,181.22,2.7611]
[1730192405534,2.7607,181.25,181.22,2.7611]
[1730192407538,6.6405,181.26,181.22,2.7611]
[1730192407938,2.7607,181.25,181.22,2.7611]
[1730192408445,3.88,181.26,181.22,2.7611]
[1730192409337,10.06412736,181.27,181.25,5.93972582]
[1730192409538,3.88,181.26,181.25,5.93972582]
[1730192409738,3.88,181.26,181.22,1.2745]
[1730192409938,3.88,181.26,181.23,5.93972582]
[1730192410139,3.88,181.26,181.23,8.70052582]
[1730192411537,3.88,181.26,181.25,2.7606]
[1730192413547,13.96412736,181.27,181.26,2.7605]
[1730192413745,3.9,181.27,181.26,8.70022582]
[1730192414249,2.7599,181.3,181.26,8.70022582]
[1730192414439,3.9,181.29,181.26,8.70022582]
[1730192414744,3.9,181.29,181.28,5.93972582]
[1730192415043,3.9,181.29,181.26,5.93972582]
[1730192415243,2.7603,181.28,181.23,1.3122]
[1730192415450,2.7603,181.28,181.24,5.93972582]
[1730192415644,2.7603,181.28,181.24,8.70042582]
[1730192416250,9.83972582,181.29,181.24,5.93972582]
[1730192416748,3.9,181.29,181.24,5.93972582]
[1730192416944,2.7604,181.27,181.24,5.93972582]
[1730192417554,9.97648022,181.34,181.26,5.93972582]
[1730192417855,5.93972582,181.34,181.28,5.93972582]
[1730192418159,2.7598,181.31,181.28,5.93972582]
[1730192419756,2.7598,181.31,181.27,1.69121437]
[1730192419946,2.7598,181.31,181.29,5.93972582]
[1730192421356,2.7599,181.3,181.29,5.93972582]
[1730192423460,2.7601,181.29,181.27,5.93972582]
[1730192423757,3.9,181.28,181.27,5.93972582]
[1730192430065,3.9,181.28,181.22,1.2745]
[1730192430256,2.7604,181.27,181.25,5.93972582]
[1730192434666,2.7604,181.27,181.26,5.93972582]
[1730192437063,2.7604,181.27,181.25,5.93972582]
[1730192437568,3.9,181.28,181.23,5.93972582]
[1730192438158,2.7604,181.27,181.23,5.93972582]
[1730192438366,3.9,181.28,181.23,5.93972582]
[1730192439367,2.7606,181.26,181.23,5.93972582]
[1730192443667,5.93972582,181.27,181.19,2.7309]
[1730192443869,5.93972582,181.27,181.2,5.93972582]
[1730192444369,2.7612,181.22,181.2,5.93972582]
[1730192444572,3.86,181.21,181.15,2.7275]
[1730192444773,3.86,181.2,181.17,5.93972582]
[1730192444967,6.6215,181.2,181.17,8.70152582]
[1730192445365,3.86,181.2,181.17,8.70152582]
[1730192445768,3.86,181.2,181.17,5.93972582]
[1730192446775,6.6214,181.2,181.17,5.93972582]
[1730192449078,6.6214,181.2,181.17,8.70152582]
[1730192451582,3.86,181.2,181.18,2.7617]
[1730192453173,3.86,181.2,181.17,8.70152582]
[1730192457981,3.86,181.2,181.15,1.3727]
[1730192458193,2.7616,181.19,181.15,7.31242582]
[1730192458796,2.7616,181.19,181.15,1.3727]
[1730192458999,2.7616,181.19,181.16,2.762]
[1730192459191,3.86,181.2,181.15,7.31242582]
[1730192459396,6.6215,181.2,181.15,7.31242582]
[1730192459990,6.6215,181.2,181.17,2.7618]
[1730192461200,3.86,181.2,181.17,5.93972582]
[1730192461404,5.93972582,181.26,181.19,5.93972582]
[1730192461600,3.88,181.25,181.19,5.93972582]
[1730192461905,2.7609,181.24,181.15,2.7069]
[1730192462091,2.7609,181.24,181.19,5.93972582]
[1730192462298,2.7609,181.24,181.2,2.7613]
[1730192462804,3.88,181.23,181.2,2.7613]
[1730192465307,5.93972582,181.22,181.18,2.7616]
[1730192466304,5.93972582,181.22,181.16,2.7619]
[1730192466305,2.7614,181.2,181.16,2.7619]
[1730192466505,2.7614,181.2,181.15,7.31242582]
[1730192466506,3.88,181.19,181.15,7.31242582]
[1730192466900,3.88,181.19,181.17,2.7617]
[1730192467404,3.88,181.19,181.15,7.31242582]
[1730192467708,3.88,181.19,181.17,8.70152582]
[1730192468506,3.88,181.19,181.16,2.762]
[1730192469211,3.88,181.19,181.14,5.93972582]
[1730192469401,3.88,181.19,181.15,2.7621]
[1730192470405,6.6416,181.19,181.15,2.7621]
[1730192474909,9.81972582,181.19,181.1,1.2989]
[1730192475103,3.88,181.19,181.13,5.93972582]
[1730192475302,3.88,181.19,181.1,1.2989]
[1730192475303,3.88,181.19,181.16,5.93972582]
[1730192476309,3.88,181.19,181.18,2.7617]
[1730192477015,3.88,181.19,181.17,2.7618]
[1730192478910,3.88,181.19,181.13,2.7624]
[1730192478911,2.762,181.16,181.13,2.7624]
[1730192479103,3.84,181.15,181.13,2.7624]
[1730192479713,3.84,181.15,181.12,5.93972582]
[1730192480006,3.84,181.15,181.09,1.3481]
[1730192480211,3.84,181.15,181.1,5.93972582]
[1730192481309,6.6023,181.15,181.12,2.7626]
[1730192484023,6.6023,181.15,181.1,5.93972582]
[1730192484321,6.6023,181.15,181.11,2.7627]
[1730192485522,2.7627,181.12,181.09,4.1112]
[1730192485722,3.84,181.11,181.09,4.1112]
[1730192485919,3.84,181.11,181.09,2.7631]
[1730192486424,6.6028,181.11,181.07,7.31492582]
[1730192486815,3.84,181.11,181.07,7.31492582]
[1730192487913,3.84,181.11,181.09,2.763]
[1730192488513,3.84,181.11,181.08,2.7632]
[1730192488724,3.84,181.11,181.07,7.31492582]
[1730192490325,3.84,181.11,181.09,2.7629]
[1730192494333,3.84,181.11,181.09,8.70262582]
[1730192498427,3.84,181.11,181.1,5.93972582]
[1730192498625,3.84,181.11,181.09,5.93972582]
[1730192499129,2.7625,181.13,181.1,5.93972582]
[1730192499340,2.7625,181.13,181.07,1.3752]
[1730192499341,3.84,181.12,181.08,1.2619]
[1730192499633,3.84,181.13,181.12,5.93972582]
[1730192499828,3.84,181.14,181.13,2.7624]
[1730192509139,3.84,181.14,181.04,345.2826]
[1730192509338,5.93972582,181.13,181.04,345.2826]
[1730192509532,2.7628,181.11,181.06,5.93972582]
[1730192509737,3.84,181.1,181.08,2.7632]
[1730192510639,3.84,181.1,181.04,345.2826]
[1730192510942,3.84,181.1,181.05,5.93972582]
[1730192512345,6.603,181.1,181.07,2.7633]
[1730192512535,12.54272582,181.1,181.07,2.7633]
[1730192512737,9.77972582,181.1,181.04,351.22232582]
[1730192513238,2.7633,181.08,181.05,2.7636]
[1730192514347,2.7635,181.07,181.02,5.93972582]
[1730192514644,3.84,181.06,181.02,5.93972582]
[1730192515347,6.6036,181.06,181.03,2.7639]
[1730192518549,3.84,181.06,181.03,2.7639]
[1730192518748,3.84,181.06,181.03,2.764]
[1730192518956,3.84,181.06,180.97,3.9156]
[1730192519137,3.84,181.06,181.03,5.93972582]
[1730192519544,3.84,181.06,180.97,3.9156]
[1730192519545,3.84,181.06,181.05,5.93972582]
[1730192520049,5.93972582,181.13,181.05,5.93972582]
[1730192520244,5.93972582,181.13,180.97,3.9156]
[1730192520245,3.84,181.12,181.06,5.93972582]
[1730192520645,3.84,181.11,181.06,5.93972582]
[1730192521242,2.7631,181.09,181.06,8.70312582]
[1730192521953,2.7631,181.09,181.06,2.7634]
[1730192522148,8.70282582,181.09,181.06,2.7634]
[1730192522944,8.70282582,181.09,181.05,2.7636]
[1730192523938,5.93972582,181.08,181.01,5.93972582]
[1730192524149,19.3105,181.15,181.01,5.93972582]
[1730192524150,5.93972582,181.06,181.01,5.93972582]
[1730192524747,5.93972582,181.05,180.99,5.93972582]
[1730192525246,8.70342582,181.05,181.01,2.7642]
[1730192526743,8.70342582,181.05,181.02,2.7641]
[1730192529050,2.7637,181.05,181.02,2.7641]
[1730192530648,3.84,181.04,180.99,5.93972582]
[1730192530848,9.77972582,181.04,180.99,5.93972582]
[1730192532250,2.7641,181.03,180.99,8.70422582]
[1730192532957,5.93972582,181.03,180.92,1.3126]
[1730192533161,5.93972582,181.02,180.92,2.5868]
[1730192533454,5.93972582,181.02,180.96,5.93972582]
[1730192533652,2.7642,181.02,180.97,8.70462582]
[1730192533853,5.93972582,181.03,180.97,8.70462582]
[1730192534261,2.7644,181.01,180.97,8.70462582]
[1730192534445,3.84,181.0,180.97,8.70462582]
[1730192536060,9.77972582,181.0,180.69,2.54289631]
[1730192536258,1.2572,181.08,180.95,5.93972582]
[1730192536259,1.3017,181.02,180.95,5.93972582]
[1730192536451,9.81972582,181.01,180.95,5.93972582]
[1730192536647,8.70412582,181.01,180.97,2.7648]
[1730192536853,3.88,181.0,180.97,2.7648]
[1730192537261,6.6445,181.0,180.97,2.7648]
[1730192538061,5.93972582,180.99,180.86,2.6023]
[1730192538249,5.93972582,180.98,180.9,5.93972582]
[1730192538857,2.7651,180.96,180.93,2.7655]
[1730192539049,5.93972582,180.98,180.92,5.93972582]
[1730192539253,3.88,180.95,180.92,5.93972582]
[1730192539464,8.70442582,180.99,180.94,2.7652]
[1730192539654,5.93972582,180.97,180.86,346.6023]
[1730192539856,2.7652,180.96,180.92,2.7656]
[1730192540358,8.70492582,180.96,180.92,2.7656]
[1730192541363,2.6504,181.01,180.92,5.93972582]
[1730192541660,8.70462582,180.98,180.93,5.93972582]
[1730192541857,5.93972582,180.98,180.93,5.93972582]
[1730192542164,3.88,180.97,180.94,2.7653]
[1730192542859,3.88,180.97,180.92,5.93972582]
[1730192543060,9.81972582,180.97,180.9,5.93972582]
[1730192544154,2.7651,180.96,180.92,2.7656]
[1730192545860,2.6504,181.01,180.92,5.93972582]
[1730192546069,2.6504,181.01,180.93,5.93972582]
[1730192546070,5.93972582,180.99,180.93,5.93972582]
[1730192546667,2.7648,180.98,180.94,2.7653]
[1730192547364,8.70452582,180.98,180.94,2.7653]
[1730192548854,1.277,181.01,180.94,5.93972582]
[1730192549060,3.88,181.0,180.94,5.93972582]
[1730192549470,3.88,180.99,180.97,2.7649]
[1730192549863,3.88,180.99,180.94,5.93972582]
[1730192550066,9.81972582,180.99,180.94,5.93972582]
[1730192550369,9.81972582,180.99,180.96,2.765]
[1730192552666,3.88,180.99,180.96,2.765]
[1730192553375,3.88,180.98,180.95,5.93972582]
[1730192553562,3.88,180.98,180.97,2.7648]
[1730192554373,1.3017,181.02,180.96,5.93972582]
[1730192554559,2.7638,181.05,181.01,2.7642]
[1730192554765,3.88,181.04,181.0,5.93972582]
[1730192555363,6.644,181.04,180.92,2.4843]
[1730192555676,6.644,181.04,180.99,5.93972582]
[1730192556071,2.764,181.03,181.0,2.7644]
[1730192557371,6.6439,181.04,181.0,2.7644]
[1730192559166,2.7639,181.04,181.0,2.7644]
[1730192559361,3.88,181.03,181.0,2.7644]
[1730192561973,5.93972582,181.02,180.92,346.4843]
[1730192562169,5.93972582,181.02,180.95,5.93972582]
[1730192563275,2.7645,181.0,180.97,2.7649]
[1730192563470,3.88,180.99,180.97,2.7649]
[1730192567669,6.6446,180.99,180.92,2.4843]
[1730192567874,6.6446,180.99,180.93,5.93972582]
[1730192568276,3.88,180.99,180.92,2.4843]
[1730192568477,9.81972582,180.99,180.92,1.1977]
[1730192568676,9.81972582,180.99,180.93,5.93972582]
[1730192569075,2.765,180.97,180.93,5.93972582]
[1730192569475,5.93972582,180.97,180.93,2.7655]
[1730192569781,5.93972582,180.97,180.92,5.93972582]
[1730192570083,9.81972582,180.99,180.92,5.93972582]
[1730192571284,2.765,180.97,180.94,2.7653]
[1730192571483,9.81972582,180.99,180.94,2.7653]
[1730192572580,3.88,180.99,180.97,2.7649]
[1730192572972,3.88,180.99,180.96,2.765]
[1730192573179,3.88,180.98,180.96,2.765]
[1730192573384,3.88,180.98,180.94,5.93972582]
[1730192573884,3.88,180.98,180.95,2.7652]
[1730192574080,3.88,180.98,180.94,5.93972582]
[1730192574487,3.88,180.98,180.96,2.7649]
[1730192576888,3.88,180.98,180.97,2.7649]
[1730192577987,3.88,180.98,180.94,5.93972582]
[1730192578284,3.88,180.98,180.96,2.765]
[1730192579789,3.88,180.98,180.94,5.93972582]
[1730192580086,3.88,180.98,180.96,2.7649]
[1730192580586,2.7646,181.0,180.94,5.93972582]
[1730192580891,1.2087,181.06,180.99,5.93972582]
[1730192581088,3.88,181.05,180.99,5.93972582]
[1730192581483,6.6437,181.05,180.99,5.93972582]
[1730192581682,6.6437,181.05,180.91,1.3904]
[1730192581885,6.6437,181.05,181.01,5.93972582]
[1730192582491,3.88,181.04,181.01,5.93972582]
[1730192582790,3.88,181.03,181.01,5.93972582]
[1730192582991,8.70322582,181.06,181.01,5.93972582]
[1730192583190,3.88,181.05,181.02,5.93972582]
[1730192583391,3.88,181.05,181.01,5.93972582]
[1730192583789,3.88,181.05,181.02,5.93972582]
[1730192584987,3.88,181.05,181.03,2.764]
[1730192585188,2.7636,181.06,181.03,2.764]
[1730192585493,3.88,181.05,181.03,2.764]
[1730192585993,3.88,181.05,181.02,8.70382582]
[1730192586490,2.7638,181.04,180.98,5.93972582]
[1730192587288,3.88,181.05,180.99,5.93972582]
[1730192587588,6.6437,181.05,181.01,5.93972582]
[1730192588185,6.6437,181.05,181.01,8.70402582]
[1730192588582,2.7633,181.08,181.02,5.93972582]
[1730192588782,3.88,181.07,181.05,2.7637]
[1730192589793,3.88,181.07,181.04,8.70352582]
[1730192591786,3.88,181.07,181.04,5.93972582]
[1730192592001,3.88,181.07,181.05,2.7637]
[1730192592296,59.7,181.1,181.04,5.93972582]
[1730192592491,3.88,181.09,181.06,5.93972582]
[1730192592690,3.88,181.08,181.06,5.93972582]
[1730192593194,3.88,181.08,181.07,5.93972582]
[1730192593788,3.88,181.08,181.07,8.70312582]
[1730192598597,3.88,181.08,181.07,2.7634]
[1730192600003,3.88,181.08,181.05,2.7636]
[1730192600296,6.6433,181.08,181.05,5.93972582]
[1730192601100,3.88,181.08,181.05,5.93972582]
[1730192602406,3.88,181.08,181.05,8.70332582]
[1730192603404,2.7632,181.09,181.05,8.70332582]
[1730192603597,3.9,181.08,181.05,8.70332582]
[1730192603798,3.9,181.08,181.05,5.93972582]
[1730192603998,3.9,181.08,181.07,8.70312582]
[1730192604303,3.9,181.08,181.07,5.93972582]
[1730192611302,3.9,181.08,180.97,345.212]
[1730192611608,3.9,181.08,181.05,5.93972582]
[1730192613422,3.9,181.08,181.06,5.93972582]
[1730192613914,3.9,181.08,181.06,8.70312582]
[1730192614117,1.1792,181.15,181.07,5.93972582]
[1730192614304,6.6625,181.14,181.11,5.93972582]
[1730192614507,3.9,181.14,181.11,5.93972582]
[1730192614910,2.7625,181.13,181.09,8.70272582]
[1730192619723,2.7629,181.11,181.07,2.7633]
[1730192620020,3.9,181.1,181.06,5.93972582]
[1730192620413,59.7,181.19,181.09,5.93972582]
[1730192620610,3.9,181.18,181.13,5.93972582]
[1730192621320,2.7621,181.16,181.13,5.93972582]
[1730192621717,5.93972582,181.15,181.09,5.93972582]
[1730192622021,59.7,181.19,181.01,2.543]
[1730192622022,2.7619,181.17,181.11,8.70232582]
[1730192622213,3.9,181.16,181.12,5.93972582]
[1730192623019,2.7622,181.15,181.12,5.93972582]
[1730192623613,3.9,181.16,181.12,5.93972582]
[1730192623815,2.7623,181.15,181.12,5.93972582]
[1730192625020,59.7,181.19,181.14,5.93972582]
[1730192625329,2.7621,181.16,181.12,8.70232582]
[1730192626009,2.7625,181.14,181.1,8.70262582]
[1730192626216,3.9,181.13,181.1,8.70262582]
[1730192626612,3.9,181.13,181.1,2.7629]
[1730192626823,6.6625,181.13,181.09,8.70282582]
[1730192627017,9.83972582,181.13,181.05,1.2193]
[1730192627320,9.83972582,181.13,181.06,5.93972582]
[1730192627627,2.7627,181.12,181.08,2.7632]
[1730192627924,5.93972582,181.11,181.05,1.2193]
[1730192628125,2.763,181.1,181.07,2.7634]
[1730192628323,3.92,181.09,181.07,2.7634]
[1730192628526,3.92,181.09,181.05,7.15902582]
[1730192628823,6.6831,181.09,181.06,2.7635]
[1730192629021,3.92,181.09,181.06,2.7635]
[1730192629416,3.92,181.09,181.05,5.93972582]
[1730192629617,3.92,181.09,181.03,5.93972582]
[1730192630326,2.7632,181.08,181.04,2.7637]
[1730192630623,2.7632,181.08,181.02,5.93972582]
[1730192631626,2.7632,181.08,181.04,2.7637]
[1730192631816,2.7636,181.06,181.02,5.93972582]
[1730192632025,3.92,181.05,181.02,5.93972582]
[1730192633224,3.92,181.05,181.03,2.764]
[1730192633933,3.92,181.05,181.04,2.7638]
[1730192640435,3.92,181.05,181.03,2.764]
[1730192640835,9.85972582,181.05,180.99,1.2155]
[1730192641131,9.85972582,181.05,181.0,2.7644]
[1730192642025,2.7639,181.04,181.01,2.7643]
[1730192643532,9.85972582,181.05,181.01,2.7643]
[1730192643533,12.62342582,181.05,181.01,2.7643]
[1730192644538,12.62342582,181.05,181.0,5.93972582]
[1730192644539,3.92,181.05,181.0,5.93972582]
[1730192644833,1.2445,181.1,181.04,2.7638]
[1730192644834,5.93972582,181.08,181.04,2.7638]
[1730192645029,3.92,181.07,181.02,5.93972582]
[1730192645224,6.6835,181.07,181.03,2.7639]
[1730192645733,3.92,181.07,181.03,2.7639]
[1730192645936,5.93972582,181.06,181.02,2.7641]
[1730192646134,5.93972582,181.05,181.02,2.7641]
[1730192646335,2.7639,181.04,181.0,2.7644]
[1730192646532,3.92,181.07,181.0,2.7644]
[1730192646533,1.2787,181.11,181.0,5.93972582]
[1730192646732,5.93972582,181.06,181.0,5.93972582]
[1730192646926,3.92,181.05,181.0,5.93972582]
[1730192647425,3.92,181.05,181.01,5.93972582]
[1730192648137,3.92,181.05,181.02,2.764]
[1730192652936,3.92,181.05,181.01,5.93972582]
[1730192653137,3.92,181.05,181.03,2.764]
[1730192657940,3.92,181.05,181.02,2.7641]
[1730192659540,12.62352582,181.05,181.01,2.7642]
[1730192661042,5.93972582,181.03,180.86,424.35397685]
[1730192661242,5.93972582,181.0,180.97,2.7649]
[1730192661434,3.9,180.99,180.97,2.7649]
[1730192662240,3.9,180.99,180.98,2.7648]
[1730192665951,3.9,180.99,180.97,2.7649]
[1730192666149,3.9,180.99,180.94,5.93972582]
[1730192666446,9.83972582,180.99,180.94,5.93972582]